[Event "Titled Tuesday Blitz November 9 2021"]
[White "Tari, Aryan"]
[Black "Cunha, Lucas Aguiar"]
[WhiteFideId "1510045"]
[BlackFideId "2125404"]
[WhiteElo "2656"]
[BlackElo "2361"]
[Result "1-0"]
[Round "05"]
[TimeControl "180+1"]
[Date "2021.11.09"]
[WhiteClock "0:00:38"]
[BlackClock "0:01:51"]

1. e4 {[%clk 0:03:00]}  c5 {[%clk 0:02:59]} 2. Nc3 {[%clk 0:02:58]}  Nc6 {[%clk 0:02:59]} 3. f4 {[%clk 0:02:58]}  g6 {[%clk 0:02:59]} 4. Nf3 {[%clk 0:02:58]}  Bg7 {[%clk 0:02:59]} 5. Bb5 {[%clk 0:02:59]}  Nd4 {[%clk 0:02:59]} 6. O-O {[%clk 0:02:59]}  e6 {[%clk 0:02:58]} 7. e5 {[%clk 0:02:50]}  Ne7 {[%clk 0:02:56]} 8. Nxd4 {[%clk 0:02:46]}  cxd4 {[%clk 0:02:57]} 9. Ne4 {[%clk 0:02:47]}  O-O {[%clk 0:02:57]} 10. Kh1 {[%clk 0:02:21]}  d5 {[%clk 0:02:56]} 11. Nf2 {[%clk 0:02:05]}  f6 {[%clk 0:02:54]} 12. exf6 {[%clk 0:02:02]}  Bxf6 {[%clk 0:02:55]} 13. Ng4 {[%clk 0:01:58]}  Bg7 {[%clk 0:02:55]} 14. Ne5 {[%clk 0:01:58]}  Nf5 {[%clk 0:02:49]} 15. Qg4 {[%clk 0:01:53]}  Qc7 {[%clk 0:02:46]} 16. b3 {[%clk 0:01:50]}  Qxc2 {[%clk 0:02:39]} 17. Ba3 {[%clk 0:01:45]}  Rf6 {[%clk 0:02:28]} 18. Rfc1 {[%clk 0:01:03]}  Qxd2 {[%clk 0:02:27]} 19. Rc7 {[%clk 0:01:03]}  Ne3 {[%clk 0:02:22]} 20. Qh3 {[%clk 0:00:58]}  Rxf4 {[%clk 0:02:18]} 21. Rxc8+ {[%clk 0:00:58]}  Rxc8 {[%clk 0:02:16]} 22. Qxe6+ {[%clk 0:00:59]}  Kh8 {[%clk 0:02:16]} 23. Qxc8+ {[%clk 0:00:40]}  Rf8 {[%clk 0:02:15]} 24. Qh3 {[%clk 0:00:41]}  Rf5 {[%clk 0:02:06]} 25. Nxg6+ {[%clk 0:00:36]}  Kg8 {[%clk 0:01:56]} 26. Ne7+ {[%clk 0:00:37]}  Kh8 {[%clk 0:01:52]} 27. Ng6+ {[%clk 0:00:36]}  Kg8 {[%clk 0:01:51]} 28. Ne7+ {[%clk 0:00:37]}  Kh8 {[%clk 0:01:51]} 29. Nxf5 {[%clk 0:00:38]} 1-0


[Site "https://www.chess.com"]

[Event "Titled Tuesday Blitz November 9 2021"]
[White "Wagh Suyog"]
[Black "Martinez Alcantara, Jose Eduardo"]
[WhiteFideId "25071688"]
[BlackFideId "3805662"]
[WhiteElo "2219"]
[BlackElo "2690"]
[Result "0-1"]
[Round "05"]
[TimeControl "180+1"]
[Date "2021.11.09"]
[WhiteClock "0:00:11"]
[BlackClock "0:01:07"]

1. e4 {[%clk 0:03:00]}  c5 {[%clk 0:02:59]} 2. Nf3 {[%clk 0:03:00]}  d6 {[%clk 0:03:00]} 3. d4 {[%clk 0:03:00]}  cxd4 {[%clk 0:03:01]} 4. Nxd4 {[%clk 0:03:01]}  Nf6 {[%clk 0:03:01]} 5. Nc3 {[%clk 0:03:01]}  a6 {[%clk 0:03:02]} 6. Bg5 {[%clk 0:03:02]}  e6 {[%clk 0:03:03]} 7. f4 {[%clk 0:03:02]}  Be7 {[%clk 0:03:03]} 8. Qe2 {[%clk 0:03:02]}  h6 {[%clk 0:03:00]} 9. Bxf6 {[%clk 0:02:44]}  Bxf6 {[%clk 0:03:01]} 10. O-O-O {[%clk 0:02:44]}  Bd7 {[%clk 0:02:50]} 11. e5 {[%clk 0:02:43]}  dxe5 {[%clk 0:02:37]} 12. fxe5 {[%clk 0:02:43]}  Be7 {[%clk 0:02:36]} 13. Kb1 {[%clk 0:02:42]}  Qc7 {[%clk 0:02:36]} 14. Nf3 {[%clk 0:02:37]}  Nc6 {[%clk 0:02:23]} 15. g4 {[%clk 0:02:25]}  O-O-O {[%clk 0:02:23]} 16. Bg2 {[%clk 0:02:24]}  Kb8 {[%clk 0:02:24]} 17. a3 {[%clk 0:02:11]}  Bc8 {[%clk 0:02:23]} 18. Qc4 {[%clk 0:02:01]}  Rxd1+ {[%clk 0:02:16]} 19. Rxd1 {[%clk 0:02:02]}  Rd8 {[%clk 0:02:17]} 20. Re1 {[%clk 0:02:00]}  Na5 {[%clk 0:01:55]} 21. Qxc7+ {[%clk 0:01:45]}  Kxc7 {[%clk 0:01:55]} 22. Ne4 {[%clk 0:01:41]}  Nc4 {[%clk 0:01:52]} 23. a4 {[%clk 0:01:41]}  Nb6 {[%clk 0:01:44]} 24. b3 {[%clk 0:01:38]}  Nd5 {[%clk 0:01:45]} 25. c4 {[%clk 0:01:26]}  Nf4 {[%clk 0:01:38]} 26. Bf1 {[%clk 0:01:25]}  b6 {[%clk 0:01:36]} 27. Kc2 {[%clk 0:01:11]}  Bb7 {[%clk 0:01:36]} 28. Ng1 {[%clk 0:00:39]}  Bb4 {[%clk 0:01:30]} 29. Nc3 {[%clk 0:00:39]}  Bc5 {[%clk 0:01:26]} 30. Nh3 {[%clk 0:00:36]}  Ng6 {[%clk 0:01:20]} 31. Bd3 {[%clk 0:00:33]}  Nh4 {[%clk 0:01:20]} 32. Be4 {[%clk 0:00:33]}  Nf3 {[%clk 0:01:19]} 33. Bxf3 {[%clk 0:00:30]}  Bxf3 {[%clk 0:01:20]} 34. Rf1 {[%clk 0:00:30]}  Bxg4 {[%clk 0:01:18]} 35. Rxf7+ {[%clk 0:00:30]}  Rd7 {[%clk 0:01:19]} 36. Rxd7+ {[%clk 0:00:30]}  Kxd7 {[%clk 0:01:20]} 37. Nf4 {[%clk 0:00:30]}  Bg1 {[%clk 0:01:14]} 38. h3 {[%clk 0:00:29]}  Bf5+ {[%clk 0:01:14]} 39. Kd2 {[%clk 0:00:30]}  g5 {[%clk 0:01:12]} 40. Nfe2 {[%clk 0:00:28]}  Bh2 {[%clk 0:01:13]} 41. a5 {[%clk 0:00:25]}  bxa5 {[%clk 0:01:12]} 42. Na4 {[%clk 0:00:25]}  Bxe5 {[%clk 0:01:11]} 43. Ke3 {[%clk 0:00:22]}  Bxh3 {[%clk 0:01:10]} 44. Ke4 {[%clk 0:00:22]}  Bd6 {[%clk 0:01:08]} 45. c5 {[%clk 0:00:22]}  Bg2+ {[%clk 0:01:08]} 46. Kd4 {[%clk 0:00:22]}  Bc7 {[%clk 0:01:07]} 47. Kc4 {[%clk 0:00:21]}  h5 {[%clk 0:01:08]} 48. Nd4 {[%clk 0:00:18]}  Bd5+ {[%clk 0:01:08]} 49. Kd3 {[%clk 0:00:17]}  h4 {[%clk 0:01:09]} 50. c6+ {[%clk 0:00:12]}  Ke7 {[%clk 0:01:09]} 51. Nc3 {[%clk 0:00:11]}  h3 {[%clk 0:01:07]} 0-1


[Site "https://www.chess.com"]

[Event "Titled Tuesday Blitz November 9 2021"]
[White "Zhigalko, Sergei"]
[Black "Ten Hertog, Hugo"]
[WhiteFideId "13502956"]
[BlackFideId "1026356"]
[WhiteElo "2662"]
[BlackElo "2493"]
[Result "0-1"]
[Round "05"]
[TimeControl "180+1"]
[Date "2021.11.09"]
[WhiteClock "0:00:01"]
[BlackClock "0:00:10"]

1. e4 {[%clk 0:03:00]}  g6 {[%clk 0:02:53]} 2. d4 {[%clk 0:03:01]}  Bg7 {[%clk 0:02:53]} 3. Nc3 {[%clk 0:03:01]}  d6 {[%clk 0:02:53]} 4. Nf3 {[%clk 0:03:01]}  a6 {[%clk 0:02:53]} 5. Be3 {[%clk 0:03:01]}  Nd7 {[%clk 0:02:50]} 6. Bc4 {[%clk 0:02:55]}  e6 {[%clk 0:02:49]} 7. a4 {[%clk 0:02:52]}  b6 {[%clk 0:02:48]} 8. O-O {[%clk 0:02:52]}  Ne7 {[%clk 0:02:48]} 9. Re1 {[%clk 0:02:49]}  Bb7 {[%clk 0:02:46]} 10. Qd2 {[%clk 0:02:32]}  h6 {[%clk 0:02:45]} 11. Rad1 {[%clk 0:02:29]}  g5 {[%clk 0:02:43]} 12. h4 {[%clk 0:02:20]}  g4 {[%clk 0:02:40]} 13. Nh2 {[%clk 0:02:19]}  Nf6 {[%clk 0:02:20]} 14. e5 {[%clk 0:01:55]}  Nfd5 {[%clk 0:01:40]} 15. Nxg4 {[%clk 0:01:45]}  Nxc3 {[%clk 0:01:31]} 16. Qxc3 {[%clk 0:01:40]}  Nf5 {[%clk 0:01:30]} 17. Be2 {[%clk 0:00:22]}  Nxh4 {[%clk 0:01:03]} 18. d5 {[%clk 0:00:20]}  h5 {[%clk 0:00:58]} 19. Nf6+ {[%clk 0:00:19]}  Bxf6 {[%clk 0:00:58]} 20. exf6 {[%clk 0:00:20]}  Rg8 {[%clk 0:00:59]} 21. g3 {[%clk 0:00:18]}  Qd7 {[%clk 0:00:53]} 22. Bxh5 {[%clk 0:00:10]}  e5 {[%clk 0:00:51]} 23. Kf1 {[%clk 0:00:07]}  Nf5 {[%clk 0:00:41]} 24. Ke2 {[%clk 0:00:06]}  Rxg3 {[%clk 0:00:37]} 25. fxg3 {[%clk 0:00:04]}  Nxg3+ {[%clk 0:00:38]} 26. Kd2 {[%clk 0:00:05]}  Ne4+ {[%clk 0:00:38]} 27. Kc1 {[%clk 0:00:05]}  Nxc3 {[%clk 0:00:39]} 28. bxc3 {[%clk 0:00:06]}  Qxa4 {[%clk 0:00:35]} 29. Rg1 {[%clk 0:00:05]}  Qa3+ {[%clk 0:00:32]} 30. Kd2 {[%clk 0:00:05]}  Bxd5 {[%clk 0:00:23]} 31. Rg8+ {[%clk 0:00:03]}  Kd7 {[%clk 0:00:23]} 32. Bg4+ {[%clk 0:00:02]}  Kc6 {[%clk 0:00:13]} 33. Rxa8 {[%clk 0:00:03]}  Qa4 {[%clk 0:00:14]} 34. Rg8 {[%clk 0:00:02]}  Qe4 {[%clk 0:00:13]} 35. Rg1 {[%clk 0:00:03]}  a5 {[%clk 0:00:14]} 36. Be2 {[%clk 0:00:03]}  Bc4 {[%clk 0:00:12]} 37. R8g4 {[%clk 0:00:02]}  Qd5+ {[%clk 0:00:13]} 38. Ke1 {[%clk 0:00:03]}  Bxe2 {[%clk 0:00:12]} 39. Kxe2 {[%clk 0:00:04]}  b5 {[%clk 0:00:13]} 40. Rf1 {[%clk 0:00:04]}  a4 {[%clk 0:00:13]} 41. Ra1 {[%clk 0:00:03]}  Qe6 {[%clk 0:00:11]} 42. Rag1 {[%clk 0:00:03]}  Qf5 {[%clk 0:00:11]} 43. Kd2 {[%clk 0:00:03]}  Qe6 {[%clk 0:00:12]} 44. Kc1 {[%clk 0:00:02]}  Qa2 {[%clk 0:00:12]} 45. Kd2 {[%clk 0:00:02]}  a3 {[%clk 0:00:10]} 46. c4 {[%clk 0:00:01]}  b4 {[%clk 0:00:10]} 0-1


[Site "https://www.chess.com"]

[Event "Titled Tuesday Blitz November 9 2021"]
[White "Zierk, Steven"]
[Black "Alavi, Sayed Javad"]
[WhiteFideId "2034255"]
[BlackFideId "12500607"]
[WhiteElo "2494"]
[BlackElo "2495"]
[Result "1-0"]
[Round "05"]
[TimeControl "180+1"]
[Date "2021.11.09"]
[WhiteClock "0:02:42"]
[BlackClock "0:02:06"]

1. b3 {[%clk 0:03:00]}  e5 {[%clk 0:02:54]} 2. Bb2 {[%clk 0:03:00]}  d6 {[%clk 0:02:54]} 3. c4 {[%clk 0:02:59]}  Nc6 {[%clk 0:02:52]} 4. g3 {[%clk 0:02:59]}  f5 {[%clk 0:02:52]} 5. Bg2 {[%clk 0:02:59]}  Nf6 {[%clk 0:02:52]} 6. Nc3 {[%clk 0:03:00]}  g6 {[%clk 0:02:50]} 7. e3 {[%clk 0:02:56]}  Bg7 {[%clk 0:02:48]} 8. Nge2 {[%clk 0:02:56]}  O-O {[%clk 0:02:43]} 9. O-O {[%clk 0:02:54]}  e4 {[%clk 0:02:26]} 10. d3 {[%clk 0:02:52]}  exd3 {[%clk 0:02:26]} 11. Qxd3 {[%clk 0:02:53]}  Ne5 {[%clk 0:02:23]} 12. Qc2 {[%clk 0:02:52]}  Rb8 {[%clk 0:02:15]} 13. Rad1 {[%clk 0:02:48]}  b6 {[%clk 0:02:15]} 14. Nb5 {[%clk 0:02:43]}  a5 {[%clk 0:02:06]} 15. Bxe5 {[%clk 0:02:42]} 1-0


[Site "https://www.chess.com"]

[Event "Titled Tuesday Blitz November 9 2021"]
[White "Adly, Ahmed"]
[Black "Jaracz, Pawel"]
[WhiteFideId "10601619"]
[BlackFideId "1102222"]
[WhiteElo "2683"]
[BlackElo "2495"]
[Result "1-0"]
[Round "06"]
[TimeControl "180+1"]
[Date "2021.11.09"]
[WhiteClock "0:00:47"]
[BlackClock "0:01:29"]

1. Nf3 {[%clk 0:03:00]}  d5 {[%clk 0:02:59]} 2. c4 {[%clk 0:02:59]}  c6 {[%clk 0:02:59]} 3. g3 {[%clk 0:02:58]}  Nd7 {[%clk 0:02:59]} 4. Bg2 {[%clk 0:02:57]}  e5 {[%clk 0:02:59]} 5. O-O {[%clk 0:02:56]}  Ngf6 {[%clk 0:02:58]} 6. cxd5 {[%clk 0:02:53]}  cxd5 {[%clk 0:02:58]} 7. d4 {[%clk 0:02:54]}  e4 {[%clk 0:02:58]} 8. Ne5 {[%clk 0:02:51]}  h6 {[%clk 0:02:57]} 9. Nc3 {[%clk 0:02:50]}  Be7 {[%clk 0:02:51]} 10. Qb3 {[%clk 0:02:43]}  Nb6 {[%clk 0:02:51]} 11. a4 {[%clk 0:02:41]}  a5 {[%clk 0:02:47]} 12. Nxe4 {[%clk 0:02:39]}  Nxe4 {[%clk 0:02:34]} 13. Bxe4 {[%clk 0:02:35]}  Be6 {[%clk 0:02:31]} 14. Qb5+ {[%clk 0:02:27]}  Kf8 {[%clk 0:02:29]} 15. Bg2 {[%clk 0:02:22]}  h5 {[%clk 0:02:20]} 16. f4 {[%clk 0:02:15]}  Bf5 {[%clk 0:02:16]} 17. Bd2 {[%clk 0:02:09]}  f6 {[%clk 0:02:11]} 18. Bxa5 {[%clk 0:02:05]}  Rxa5 {[%clk 0:02:11]} 19. Qxa5 {[%clk 0:02:06]}  fxe5 {[%clk 0:02:11]} 20. fxe5 {[%clk 0:02:05]}  g6 {[%clk 0:02:11]} 21. Bh3 {[%clk 0:01:58]}  Nc4 {[%clk 0:02:04]} 22. Qxd8+ {[%clk 0:01:50]}  Bxd8 {[%clk 0:02:05]} 23. Bxf5 {[%clk 0:01:51]}  gxf5 {[%clk 0:02:05]} 24. Rxf5+ {[%clk 0:01:47]}  Ke8 {[%clk 0:02:05]} 25. e6 {[%clk 0:01:38]}  Ne3 {[%clk 0:01:59]} 26. Rf7 {[%clk 0:01:29]}  Rh6 {[%clk 0:01:56]} 27. Rxb7 {[%clk 0:01:20]}  Rxe6 {[%clk 0:01:53]} 28. a5 {[%clk 0:01:16]}  Nc2 {[%clk 0:01:51]} 29. Ra2 {[%clk 0:01:09]}  Rxe2 {[%clk 0:01:49]} 30. a6 {[%clk 0:01:05]}  Ne3 {[%clk 0:01:33]} 31. a7 {[%clk 0:00:52]}  Rg2+ {[%clk 0:01:32]} 32. Kh1 {[%clk 0:00:48]}  Rf2 {[%clk 0:01:29]} 33. Ra1 {[%clk 0:00:47]} 1-0


[Site "https://www.chess.com"]

[Event "Titled Tuesday Blitz November 9 2021"]
[White "Cunha, Lucas Aguiar"]
[Black "Bazeev, German"]
[WhiteFideId "2125404"]
[BlackFideId "24119350"]
[WhiteElo "2361"]
[BlackElo "2462"]
[Result "0-1"]
[Round "06"]
[TimeControl "180+1"]
[Date "2021.11.09"]
[WhiteClock "0:01:17"]
[BlackClock "0:00:15"]

1. e4 {[%clk 0:02:59]}  c6 {[%clk 0:01:31]} 2. d4 {[%clk 0:02:58]}  d5 {[%clk 0:01:32]} 3. e5 {[%clk 0:02:58]}  Bf5 {[%clk 0:01:31]} 4. Nf3 {[%clk 0:02:59]}  e6 {[%clk 0:01:31]} 5. Be2 {[%clk 0:02:59]}  Nd7 {[%clk 0:01:32]} 6. O-O {[%clk 0:03:00]}  a6 {[%clk 0:01:33]} 7. Nbd2 {[%clk 0:03:00]}  h6 {[%clk 0:01:33]} 8. Nb3 {[%clk 0:03:01]}  Ne7 {[%clk 0:01:34]} 9. a4 {[%clk 0:03:01]}  g5 {[%clk 0:01:34]} 10. a5 {[%clk 0:03:02]}  Bg6 {[%clk 0:01:34]} 11. Ne1 {[%clk 0:03:02]}  Nf5 {[%clk 0:01:34]} 12. Bd2 {[%clk 0:03:02]}  h5 {[%clk 0:01:33]} 13. c4 {[%clk 0:03:02]}  g4 {[%clk 0:01:31]} 14. cxd5 {[%clk 0:03:01]}  cxd5 {[%clk 0:01:30]} 15. Nd3 {[%clk 0:02:59]}  Nb8 {[%clk 0:01:21]} 16. Nf4 {[%clk 0:02:56]}  Nc6 {[%clk 0:01:18]} 17. Bc3 {[%clk 0:02:44]}  Bh6 {[%clk 0:01:13]} 18. Nxg6 {[%clk 0:02:44]}  fxg6 {[%clk 0:01:13]} 19. Nc5 {[%clk 0:02:44]}  Qe7 {[%clk 0:01:11]} 20. Ra4 {[%clk 0:02:35]}  O-O {[%clk 0:01:08]} 21. Bd2 {[%clk 0:02:21]}  Bxd2 {[%clk 0:01:04]} 22. Qxd2 {[%clk 0:02:22]}  Ncxd4 {[%clk 0:01:02]} 23. Nd3 {[%clk 0:02:18]}  Rac8 {[%clk 0:00:57]} 24. Bd1 {[%clk 0:02:16]}  Kg7 {[%clk 0:00:45]} 25. Rb4 {[%clk 0:02:15]}  Rc4 {[%clk 0:00:39]} 26. Rb6 {[%clk 0:02:11]}  Rc6 {[%clk 0:00:39]} 27. Rb4 {[%clk 0:02:10]}  Rfc8 {[%clk 0:00:38]} 28. Nf4 {[%clk 0:02:07]}  Rc4 {[%clk 0:00:34]} 29. Rb6 {[%clk 0:02:05]}  R8c6 {[%clk 0:00:29]} 30. b3 {[%clk 0:01:41]}  Rxb6 {[%clk 0:00:29]} 31. bxc4 {[%clk 0:01:41]}  Qb4 {[%clk 0:00:20]} 32. Qxb4 {[%clk 0:01:41]}  Rxb4 {[%clk 0:00:21]} 33. cxd5 {[%clk 0:01:42]}  exd5 {[%clk 0:00:16]} 34. Re1 {[%clk 0:01:31]}  Rb1 {[%clk 0:00:12]} 35. Kf1 {[%clk 0:01:29]}  Ne7 {[%clk 0:00:12]} 36. e6 {[%clk 0:01:27]}  Nb5 {[%clk 0:00:12]} 37. Bc2 {[%clk 0:01:26]}  Rxe1+ {[%clk 0:00:12]} 38. Kxe1 {[%clk 0:01:27]}  Kf6 {[%clk 0:00:11]} 39. g3 {[%clk 0:01:25]}  Nc7 {[%clk 0:00:12]} 40. Bd3 {[%clk 0:01:25]}  Nxe6 {[%clk 0:00:12]} 41. Ne2 {[%clk 0:01:25]}  Nc5 {[%clk 0:00:12]} 42. Bb1 {[%clk 0:01:25]}  Ke5 {[%clk 0:00:13]} 43. Kd2 {[%clk 0:01:26]}  d4 {[%clk 0:00:14]} 44. Nc1 {[%clk 0:01:25]}  Kf6 {[%clk 0:00:12]} 45. Ke2 {[%clk 0:01:23]}  Nc6 {[%clk 0:00:12]} 46. Nd3 {[%clk 0:01:20]}  Nxd3 {[%clk 0:00:12]} 47. Kxd3 {[%clk 0:01:21]}  Nxa5 {[%clk 0:00:10]} 48. Kxd4 {[%clk 0:01:22]}  Nc6+ {[%clk 0:00:11]} 49. Kc5 {[%clk 0:01:22]}  Ne5 {[%clk 0:00:09]} 50. Be4 {[%clk 0:01:21]}  b5 {[%clk 0:00:08]} 51. Kb6 {[%clk 0:01:20]}  Nc4+ {[%clk 0:00:08]} 52. Kxa6 {[%clk 0:01:19]}  Nd2 {[%clk 0:00:09]} 53. Bd3 {[%clk 0:01:17]}  b4 {[%clk 0:00:09]} 54. Ka5 {[%clk 0:01:15]}  b3 {[%clk 0:00:10]} 55. Kb4 {[%clk 0:01:16]}  b2 {[%clk 0:00:11]} 56. Kc3 {[%clk 0:01:16]}  b1=Q {[%clk 0:00:11]} 57. Bxb1 {[%clk 0:01:16]}  Nxb1+ {[%clk 0:00:12]} 58. Kb3 {[%clk 0:01:16]}  Ke5 {[%clk 0:00:13]} 59. Kc2 {[%clk 0:01:16]}  Ke4 {[%clk 0:00:13]} 60. Kxb1 {[%clk 0:01:16]}  Kf3 {[%clk 0:00:14]} 61. Kc2 {[%clk 0:01:16]}  Kxf2 {[%clk 0:00:14]} 62. Kd3 {[%clk 0:01:16]}  Kg2 {[%clk 0:00:15]} 63. Ke3 {[%clk 0:01:17]}  Kxh2 {[%clk 0:00:15]} 64. Kf2 {[%clk 0:01:17]}  Kh3 {[%clk 0:00:15]} 0-1


[Site "https://www.chess.com"]

[Event "Titled Tuesday Blitz November 9 2021"]
[White "Hansen, Eric"]
[Black "Manafov, Vugar"]
[WhiteFideId "2606771"]
[BlackFideId "13410814"]
[WhiteElo "2568"]
[BlackElo "2277"]
[Result "1/2-1/2"]
[Round "06"]
[TimeControl "180+1"]
[Date "2021.11.09"]
[WhiteClock "0:01:33"]
[BlackClock "0:02:03"]

1. e4 {[%clk 0:02:56]}  Nf6 {[%clk 0:03:00]} 2. e5 {[%clk 0:02:56]}  Nd5 {[%clk 0:03:01]} 3. c4 {[%clk 0:02:57]}  Nb6 {[%clk 0:03:01]} 4. d4 {[%clk 0:02:58]}  d6 {[%clk 0:03:02]} 5. exd6 {[%clk 0:02:58]}  cxd6 {[%clk 0:03:03]} 6. Nc3 {[%clk 0:02:59]}  g6 {[%clk 0:03:03]} 7. Be3 {[%clk 0:02:58]}  Bg7 {[%clk 0:03:04]} 8. Rc1 {[%clk 0:02:59]}  O-O {[%clk 0:03:04]} 9. b3 {[%clk 0:02:54]}  Bf5 {[%clk 0:03:04]} 10. Be2 {[%clk 0:02:53]}  d5 {[%clk 0:03:05]} 11. Nf3 {[%clk 0:02:50]}  Nc6 {[%clk 0:03:02]} 12. O-O {[%clk 0:02:49]}  Bg4 {[%clk 0:03:00]} 13. c5 {[%clk 0:02:43]}  Nc8 {[%clk 0:03:00]} 14. h3 {[%clk 0:02:34]}  Bxf3 {[%clk 0:03:00]} 15. Bxf3 {[%clk 0:02:34]}  e6 {[%clk 0:03:01]} 16. b4 {[%clk 0:02:30]}  a6 {[%clk 0:03:01]} 17. a3 {[%clk 0:02:24]}  N8e7 {[%clk 0:03:01]} 18. Ne2 {[%clk 0:02:24]}  Nf5 {[%clk 0:03:01]} 19. Qd3 {[%clk 0:02:25]}  Qf6 {[%clk 0:02:50]} 20. Rcd1 {[%clk 0:02:20]}  Nh4 {[%clk 0:02:50]} 21. Bf4 {[%clk 0:02:14]}  Nf5 {[%clk 0:02:44]} 22. Be3 {[%clk 0:02:10]}  Nh4 {[%clk 0:02:25]} 23. Bf4 {[%clk 0:02:03]}  Nf5 {[%clk 0:02:03]} 24. Be3 {[%clk 0:01:33]} 1/2-1/2


[Site "https://www.chess.com"]